bitfinex/quotes_SOLUSD_20240909
["timestamp","ask_amount","ask_price","bid_price","bid_amount"]
[1725843912926,6.5287,130.95,130.86,34.30587851]
[1725843913215,8.43859738,130.95,130.86,34.30587851]
[1725843913712,6.5287,130.95,130.86,34.30587851]
[1725843914010,6.5287,130.95,130.88,34.30587851]
[1725843914222,8.43830181,130.95,130.88,34.30587851]
[1725843914389,6.5287,130.95,130.86,34.30587851]
[1725843914809,1.90997936,130.94,130.84,34.30587851]
[1725843915014,21.7559,130.93,130.82,34.30587851]
[1725843915227,34.39700658,130.92,130.82,34.30587851]
[1725843915403,26.3759,130.92,130.84,34.30587851]
[1725843915594,6.3759,130.92,130.86,34.30587851]
[1725843917019,6.3759,130.92,130.83,34.30587851]
[1725843917311,1.91019823,130.91,130.83,34.30587851]
[1725843919194,6.3759,130.92,130.83,34.30587851]
[1725843921518,8.2860357,130.92,130.83,34.30587851]
[1725843921894,20.0,130.91,130.81,34.30587851]
[1725843922108,1.91068618,130.9,130.81,34.30587851]
[1725843922315,16.5624,130.88,130.79,34.30587851]
[1725843922521,1.91082843,130.87,130.79,34.30587851]
[1725843922896,6.2917,130.86,130.79,34.30587851]
[1725843923305,6.2917,130.86,130.83,34.30587851]
[1725843923915,6.2917,130.86,130.81,34.30587851]
[1725843924119,6.2917,130.86,130.79,34.30587851]
[1725843925404,6.2917,130.86,130.83,34.30587851]
[1725843925601,16.5624,130.88,130.76,64.98184722]
[1725843925819,16.5624,130.88,130.77,20.0]
[1725843926026,16.5624,130.88,130.83,34.30587851]
[1725843926225,16.5624,130.88,130.77,20.0]
[1725843926226,16.5624,130.88,130.84,27.5295917]
[1725843927227,16.5624,130.88,130.77,20.0]
[1725843927401,16.5624,130.88,130.8,27.5295917]
[1725843928513,16.5624,130.88,130.82,27.5295917]
[1725843928919,16.5624,130.88,130.76,50.20293116]
[1725843928920,8.35607112,130.87,130.8,27.5295917]
[1725843929102,15.3774,130.85,130.78,27.5295917]
[1725843929301,15.3774,130.85,130.72,15.1202]
[1725843929302,1.91127356,130.84,130.76,27.5295917]
[1725843929533,6.4451,130.83,130.76,27.5295917]
[1725843929709,1.91170058,130.82,130.74,27.5295917]
[1725843930630,8.35675657,130.83,130.74,27.5295917]
[1725843930806,1.91166367,130.82,130.74,27.5295917]
[1725843931321,6.4451,130.83,130.74,27.5295917]
[1725843931517,1.9116781,130.82,130.74,27.5295917]
[1725843932019,6.4451,130.83,130.74,27.5295917]
[1725843932229,1.91167733,130.82,130.74,34.45955349]
[1725843932603,15.9855,130.81,130.74,34.45955349]
[1725843933441,1.91176459,130.8,130.74,34.45955349]
[1725843933600,15.3882,130.78,130.69,8.86138374]
[1725843933807,1.91236832,130.77,130.69,0.8542658]
[1725843934005,6.0867,130.75,130.69,0.8542658]
[1725843934235,16.4157,130.73,130.69,0.8542658]
[1725843937312,6.0867,130.75,130.69,35.31381929]
[1725843937546,6.0867,130.75,130.71,34.45955349]
[1725843938631,6.0867,130.75,130.69,35.31381929]
[1725843939421,6.0867,130.75,130.7,45.0]
[1725843939935,15.5663,130.76,130.71,35.98939945]
[1725843940144,15.5663,130.76,130.73,34.45955349]
[1725843940317,15.5663,130.76,130.71,34.45955349]
[1725843941521,15.5663,130.76,130.69,35.31381929]
[1725843942741,15.5663,130.76,130.71,34.45955349]
[1725843943634,20.61451158,130.78,130.75,34.45955349]
[1725843943833,6.0294,130.78,130.76,1.52932743]
[1725843944036,273.92865968,130.86,130.77,34.45955349]
[1725843944037,22.5971,130.82,130.77,34.45955349]
[1725843944331,22.5971,130.82,130.79,34.45955349]
[1725843944534,22.5971,130.82,130.72,45.0]
[1725843944535,22.5971,130.82,130.77,34.45955349]
[1725843944922,22.5971,130.82,130.78,45.0]
[1725843945538,22.5971,130.82,130.79,34.45955349]
[1725843945736,22.8963,130.85,130.79,34.45955349]
[1725843946818,22.8963,130.85,130.81,34.45955349]
[1725843947630,22.8963,130.85,130.79,34.45955349]
[1725843948742,22.8963,130.85,130.8,45.0]
[1725843948944,22.8963,130.85,130.81,34.45955349]
[1725843950722,22.8963,130.85,130.76,34.45955349]
[1725843950723,22.8963,130.85,130.79,34.45955349]
[1725843951842,22.8963,130.85,130.81,34.45955349]
[1725843953142,22.0768,130.88,130.83,34.45955349]
[1725843953521,22.0768,130.88,130.84,1.52744855]
[1725843954325,22.0768,130.88,130.83,34.45955349]
[1725843955947,22.0768,130.88,130.84,45.0]
[1725843956742,22.9986,130.91,130.84,45.0]
[1725843957039,22.9986,130.91,130.85,34.45955349]
[1725843958053,22.9986,130.91,130.87,34.45955349]
[1725843958434,14.68818776,130.93,130.87,34.45955349]
[1725843958636,25.03473518,130.95,130.87,34.45955349]
[1725843959455,23.1249,130.95,130.87,34.45955349]
[1725843959641,25.03475415,130.95,130.87,34.45955349]
[1725843960049,23.1249,130.95,130.88,45.0]
[1725843960435,23.1249,130.95,130.87,34.45955349]
[1725843960665,23.1249,130.95,130.85,34.45955349]
[1725843960832,1.91020551,130.94,130.85,34.45955349]
[1725843961036,23.1249,130.95,130.85,34.45955349]
[1725843961226,23.1249,130.95,130.89,34.45955349]
[1725843962452,23.1249,130.95,130.91,34.45955349]
[1725843962673,23.0077,130.98,130.91,34.45955349]
[1725843963326,1.90952059,130.97,130.89,34.45955349]
[1725843963631,23.0077,130.98,130.91,34.45955349]
[1725843963936,49.02402147,131.01,130.95,34.45955349]
[1725843964544,1.90890803,131.0,130.95,34.45955349]
[1725843964746,49.02402147,131.01,130.95,34.45955349]
[1725843965347,21.3143,131.01,130.97,34.45955349]
[1725843966155,21.3143,131.01,130.95,34.45955349]
[1725843969236,1.90876381,131.0,130.95,34.45955349]
[1725843969637,21.3143,131.01,130.95,34.45955349]
[1725843971255,21.3143,131.01,130.97,34.45955349]
[1725843971457,1.90869859,131.0,130.92,34.45955349]
[1725843971660,20.0,131.0,130.92,34.45955349]
[1725843972042,20.0,131.0,130.92,33.5188861]
[1725843972238,20.0,131.0,130.93,27.49236992]
[1725843972860,20.0,131.0,130.95,27.49236992]
[1725843973038,21.3143,131.01,130.95,27.49236992]
[1725843973250,21.3143,131.01,130.97,27.49236992]
[1725843975244,21.3143,131.01,130.95,27.49236992]
[1725843979770,21.3143,131.01,130.97,27.49236992]
[1725843981464,16.6527,131.04,130.97,27.49236992]
[1725843981640,16.6527,131.04,130.99,27.49236992]
[1725843983044,16.6527,131.04,131.01,27.49236992]
[1725843983243,16.6527,131.04,130.99,27.49236992]
[1725843985553,16.6527,131.04,130.97,27.49236992]
[1725843986164,16.6527,131.04,130.95,6.1502]
[1725843986165,16.6527,131.04,130.99,27.49236992]
[1725843987368,18.56090001,131.04,130.99,27.49236992]
[1725843987742,16.6527,131.04,130.99,27.49236992]
[1725843987954,16.6527,131.04,131.01,27.49236992]
[1725843988471,16.0241,131.07,131.03,27.49236992]
[1725843988671,6.6533,131.08,131.05,27.49236992]
[1725843988975,16.0241,131.1,131.07,27.49236992]
[1725843989380,16.0241,131.1,131.05,27.49236992]
[1725843989674,6.6533,131.12,131.07,27.49236992]
[1725843989862,6.6533,131.12,131.05,27.49236992]
[1725843990049,6.6533,131.12,131.01,6.1418]
[1725843990050,1.90728371,131.11,131.03,27.49236992]
[1725843990248,1.90758102,131.1,131.03,27.49236992]
[1725843990471,6.1018,131.11,130.99,15.4721]
[1725843990677,6.1018,131.11,131.01,27.49236992]
[1725843990854,21.46343143,131.12,131.03,27.49236992]
[1725843991049,20.0,131.11,131.03,27.49236992]
[1725843991767,26.1018,131.11,131.03,27.49236992]
[1725843992356,15.813,131.09,131.01,27.49236992]
[1725843992871,15.813,131.09,131.03,27.49236992]
[1725843994857,1.90752605,131.08,131.01,27.49236992]
[1725843995176,1.90766682,131.07,131.01,27.49236992]
[1725843995385,1.90766682,131.07,130.99,27.49236992]
[1725843995669,12.5203,131.06,130.99,27.49236992]
[1725843995873,6.4163,131.06,130.99,27.49236992]
[1725843997689,6.4163,131.06,131.01,27.49236992]
[1725843998263,15.0009,131.05,130.91,16.6395]
[1725843998483,15.0009,131.05,130.97,27.49236992]
[1725843998858,15.0009,131.05,130.99,27.49236992]
[1725843999988,15.0009,131.05,130.97,27.49236992]
[1725844000278,1.90846129,131.04,130.91,16.6395]
[1725844000470,1.90846129,131.04,130.95,27.49236992]
[1725844000471,21.90846129,131.04,130.95,27.49236992]
[1725844000663,6.1057,131.03,130.95,27.49236992]
[1725844000885,6.3108,131.01,130.91,16.6395]
[1725844001089,6.3108,131.01,130.94,27.49236992]
[1725844001396,6.3108,131.01,130.9,33.91236992]
[1725844001397,16.6614,130.99,130.92,27.49236992]
[1725844001771,16.6614,130.99,130.87,24.48681663]
[1725844001772,16.6614,130.99,130.94,27.49236992]
[1725844002080,16.6614,130.99,130.96,27.49236992]
[1725844002490,16.6614,130.99,130.94,27.49236992]
[1725844004885,6.3108,131.01,130.96,27.49236992]
[1725844009564,6.3108,131.01,130.94,27.49236992]
[1725844009565,1.90844777,131.0,130.94,27.49236992]
[1725844009762,6.3108,131.01,130.94,27.49236992]
[1725844010503,8.21981917,131.01,130.94,27.49236992]
[1725844011268,20.0,131.0,130.87,24.48681663]
[1725844011471,20.0,131.0,130.91,27.49236992]
[1725844011773,20.0,131.0,130.93,27.49236992]
[1725844012173,6.3108,131.01,130.93,27.49236992]
[1725844012797,8.21970041,131.01,130.93,27.49236992]
[1725844013201,6.3108,131.01,130.93,27.49236992]
[1725844014086,1.90889991,131.0,130.93,27.49236992]
[1725844015177,6.3108,131.01,130.93,27.49236992]
[1725844015591,6.3108,131.01,130.95,27.49236992]
[1725844016005,1.90876782,131.0,130.95,27.49236992]
[1725844016292,6.3108,131.01,130.87,24.48761119]
[1725844016504,6.3108,131.01,130.93,27.49236992]
[1725844017000,6.3108,131.01,130.95,27.49236992]
[1725844017901,6.3108,131.01,130.9,27.49236992]
[1725844017902,6.3108,131.01,130.97,27.49236992]
[1725844018071,6.3108,131.01,130.99,27.49236992]
[1725844018277,15.3055,131.02,130.99,27.49236992]
[1725844019682,15.3055,131.02,130.97,27.49236992]
[1725844020681,15.3055,131.02,130.95,27.49236992]
[1725844021211,15.3055,131.02,130.97,27.49236992]
[1725844021405,17.21405937,131.02,130.95,27.49236992]
[1725844021583,15.3055,131.02,130.95,27.49236992]
[1725844022092,26.1065,131.01,130.93,27.49236992]
[1725844022491,6.0005,131.0,130.93,27.49236992]
[1725844023211,1.90886926,130.99,130.93,27.49236992]
[1725844023391,1.90904139,130.98,130.93,27.49236992]
[1725844023592,6.0005,131.0,130.93,27.49236992]
[1725844024107,37.01693179,130.99,130.87,16.92471119]
[1725844024413,53.01772453,130.98,130.88,27.49236992]
[1725844024582,20.0,130.97,130.88,27.49236992]
[1725844024787,1.90965112,130.96,130.88,27.49236992]
[1725844025009,20.0,130.97,130.9,27.49236992]
[1725844025298,21.90936709,130.97,130.9,27.49236992]
[1725844025499,1.90936709,130.97,130.9,27.49236992]
[1725844025915,20.0,130.98,130.9,27.49236992]
[1725844026085,1.90956526,130.97,130.9,27.49236992]
[1725844027611,20.0,130.98,130.9,27.49236992]
[1725844027815,20.0,130.98,130.92,27.49236992]
[1725844028605,15.1078,130.99,130.92,27.49236992]
[1725844030392,15.1078,130.99,130.87,15.5942]
[1725844030715,28.01718797,130.98,130.88,27.49236992]
[1725844031186,26.1078,130.98,130.88,27.49236992]
[1725844031920,8.458062,130.97,130.86,27.49236992]
[1725844032101,16.6131,130.94,130.86,27.49236992]
[1725844032296,1.90982595,130.93,130.86,27.49236992]
[1725844032490,1.90987758,130.92,130.84,27.49236992]
[1725844033505,1.91004307,130.93,130.84,27.49236992]
[1725844033692,16.6131,130.94,130.88,27.49236992]
[1725844034102,16.6131,130.94,130.9,27.49236992]
[1725844036725,23.0421,130.97,130.9,27.49236992]
[1725844036911,23.0421,130.97,130.92,27.49236992]
[1725844037225,23.0421,130.97,130.94,27.49236992]
[1725844037226,16.4937,130.97,130.94,27.49236992]
[1725844038304,22.091,131.0,130.94,27.49236992]
[1725844038530,22.091,131.0,130.96,27.49236992]
[1725844042210,22.091,131.0,130.94,27.49236992]
[1725844044417,22.091,131.0,130.96,27.49236992]
[1725844046026,21.506,131.03,130.96,27.49236992]
[1725844046227,21.506,131.03,130.98,27.49236992]
[1725844046532,21.506,131.03,131.0,27.49236992]
[1725844046737,21.506,131.03,130.98,27.49236992]
[1725844049622,21.506,131.03,130.96,27.49236992]
[1725844050210,1.90857737,131.02,130.96,27.49236992]
[1725844050412,1.90862474,131.01,130.94,27.49236992]
[1725844050630,21.506,131.03,130.96,27.49236992]
[1725844054243,21.506,131.03,130.89,18.83262488]
[1725844054244,21.506,131.03,130.94,27.49236992]
[1725844054428,21.506,131.03,130.92,27.49236992]
[1725844054629,21.506,131.03,130.94,27.49236992]
[1725844055633,20.0,131.02,130.94,27.49236992]
[1725844058867,27.6115,131.03,130.96,27.49236992]
[1725844058868,21.506,131.03,130.96,27.49236992]
[1725844059737,21.506,131.03,130.96,29.01917873]
[1725844059953,21.506,131.03,130.96,27.49236992]
[1725844060169,21.506,131.03,130.98,27.49236992]
[1725844060958,21.506,131.03,131.0,27.49236992]
[1725844061548,21.506,131.03,130.98,27.49236992]
[1725844062051,21.506,131.03,130.96,27.49236992]
[1725844062774,23.41466143,131.03,130.94,27.49236992]
[1725844063152,21.506,131.03,130.94,27.49236992]
[1725844063352,21.506,131.03,130.96,27.49236992]
[1725844066760,21.506,131.03,130.98,27.49236992]
[1725844070784,1.90845265,131.02,130.96,27.49236992]
[1725844070980,21.506,131.03,130.96,27.49236992]
[1725844071780,1.90845471,131.02,130.96,27.49236992]
[1725844072477,27.6118,131.03,130.91,15.6122]
[1725844072478,29.52058339,131.03,130.94,27.49236992]
[1725844073591,1.9087869,131.02,130.96,27.49236992]
[1725844073886,21.506,131.03,130.96,27.49236992]
[1725844077985,21.506,131.03,130.98,27.49236992]
[1725844078687,35.52863586,131.06,131.0,27.49236992]
[1725844078899,15.9758,131.09,131.04,27.49236992]
[1725844079068,15.9758,131.09,130.98,44.15586992]
[1725844079069,15.9758,131.09,131.07,27.49236992]
[1725844079262,6.4473,131.11,131.07,27.49236992]
[1725844079463,15.9758,131.12,131.08,1.52564925]
[1725844079694,15.9758,131.12,131.07,27.49236992]
[1725844080491,15.9758,131.12,131.05,27.49236992]
[1725844080895,15.9758,131.12,131.06,45.0]
[1725844081068,15.9758,131.12,131.07,27.49236992]
[1725844081384,15.9758,131.12,131.06,45.0]
[1725844081385,15.9758,131.12,131.09,27.49236992]
[1725844083403,17.88282599,131.12,131.07,27.49236992]
[1725844083690,15.9758,131.12,131.09,27.49236992]
[1725844085595,6.4209,131.14,131.09,27.49236992]
[1725844087086,6.4209,131.14,131.04,25.57149072]
[1725844087289,6.4209,131.14,131.07,27.49236992]
[1725844090899,1.90712905,131.13,131.05,27.49236992]
[1725844091199,1.90730458,131.12,131.01,15.6865]
[1725844091418,16.1622,131.13,131.03,27.49236992]
[1725844092298,16.1622,131.13,131.0,12.81388471]
[1725844092505,16.1622,131.13,130.89,7.98577031]
[1725844092506,16.1622,131.06,130.95,6.6352]
[1725844092691,14.04329992,131.05,130.96,27.49236992]
[1725844092887,1.90860309,131.04,130.96,27.49236992]
[1725844093691,1.90860309,131.04,130.94,27.49236992]
[1725844094213,21.2214,131.02,130.92,27.49236992]
[1725844094416,6.0222,131.0,130.92,27.49236992]
[1725844094602,1.90907903,130.99,130.92,27.49236992]
[1725844094808,1.90908469,130.98,130.92,27.49236992]
[1725844095398,6.0222,131.0,130.92,27.49236992]
[1725844096097,6.0222,131.0,130.91,34.37006799]
[1725844097995,6.0222,131.0,130.93,34.37006799]
[1725844098417,6.0222,131.0,130.91,34.37006799]
[1725844098592,7.93129694,131.0,130.91,34.37006799]
[1725844099018,7.93129694,131.0,130.89,34.37006799]
[1725844100304,6.0222,131.0,130.89,34.37006799]
[1725844100517,1.90929649,130.99,130.89,34.37006799]
[1725844100708,1.90935644,130.98,130.89,34.37006799]
[1725844100905,15.5438,130.97,130.89,34.37006799]
[1725844101116,1.90961021,130.96,130.89,34.37006799]
[1725844101404,15.5438,130.97,130.89,34.37006799]
[1725844104728,21.036,131.0,130.95,34.37006799]
[1725844109527,15.0138,131.0,130.95,34.37006799]
[1725844110130,22.932,131.03,130.95,34.37006799]
[1725844110906,1.9087042,131.02,130.95,34.37006799]
[1725844111407,22.932,131.03,130.95,34.37006799]
[1725844113338,1.90849827,131.02,130.93,34.37006799]
[1725844113631,20.0,131.02,130.93,34.37006799]
[1725844115426,20.0,131.02,130.9,15.7432]
[1725844115628,20.0,131.02,130.95,34.37006799]
[1725844116042,21.9086818,131.02,130.95,34.37006799]
[1725844116922,20.0,131.02,130.95,34.37006799]
[1725844117915,20.0,131.02,130.93,34.37006799]
[1725844118120,20.0,131.02,130.95,27.48529818]
[1725844121825,1.90882755,131.01,130.91,27.48529818]
[1725844122144,6.1087,130.97,130.87,27.48529818]
[1725844122437,6.1087,130.97,130.85,6.2205]
[1725844122438,12.3988,130.95,130.85,27.48529818]
[1725844122635,12.3988,130.95,130.83,27.48529818]
[1725844122636,6.1101,130.93,130.83,27.48529818]
[1725844122941,21.91045552,130.94,130.81,27.48529818]
[1725844122942,46.91053549,130.92,130.81,27.48529818]
[1725844123113,6.1115,130.9,130.81,27.48529818]
[1725844123308,6.1232,130.88,130.81,27.48529818]
[1725844123734,15.8957,130.89,130.83,27.48529818]
[1725844124043,6.1367,130.91,130.85,27.48529818]
[1725844124223,20.0,130.9,130.85,27.48529818]
[1725844124842,6.1367,130.91,130.85,27.48529818]
[1725844125922,6.1367,130.91,130.87,27.48529818]
[1725844126219,15.1991,130.93,130.87,27.48529818]
[1725844126417,1.90992739,130.92,130.87,27.48529818]
[1725844126624,15.1991,130.93,130.87,27.48529818]
[1725844127639,1.90981521,130.92,130.87,27.48529818]
[1725844128138,15.1991,130.93,130.87,27.48529818]
[1725844130216,1.90998732,130.92,130.87,27.48529818]
[1725844130425,1.40998732,130.92,130.87,27.48529818]
[1725844130630,15.1991,130.93,130.85,27.48529818]
[1725844131642,6.1111,130.91,130.81,27.48529818]
[1725844131826,66.91086464,130.9,130.81,27.48529818]
[1725844132317,65.0,130.9,130.81,27.48529818]
[1725844133217,20.0,130.9,130.81,27.48529818]
[1725844133418,20.0,130.91,130.81,27.48529818]
[1725844134147,1.91063196,130.9,130.81,27.48529818]
[1725844134316,20.0,130.91,130.83,27.48529818]
[1725844134515,1.91033484,130.91,130.85,27.48529818]
[1725844134942,20.0,130.92,130.79,6.3011]
[1725844135245,20.0,130.92,130.83,27.48529818]
[1725844136641,20.0,130.92,130.84,45.0]
[1725844136816,20.0,130.92,130.85,27.48529818]
[1725844137147,15.1991,130.93,130.85,27.48529818]
[1725844138341,39.64241419,130.92,130.85,27.48529818]
[1725844138547,19.22854004,130.91,130.85,27.48529818]
[1725844139228,19.22854004,130.91,130.87,27.48529818]
[1725844141325,19.22854004,130.91,130.83,27.48529818]
[1725844142355,19.22854004,130.91,130.85,27.48529818]
[1725844142652,19.22854004,130.91,130.87,27.48529818]
[1725844145633,19.22854004,130.91,130.85,27.48529818]
[1725844145840,19.22854004,130.91,130.83,27.48529818]
[1725844145841,1.91035065,130.9,130.83,27.48529818]
[1725844146038,15.8621,130.87,130.78,16.1656]
[1725844146240,17.77325315,130.87,130.79,27.48529818]
[1725844146631,15.8621,130.87,130.79,27.48529818]
[1725844147039,15.8621,130.87,130.83,27.48529818]
[1725844147331,6.6299,130.88,130.85,27.48529818]
[1725844147654,34.77679378,130.9,130.85,27.48529818]
[1725844147824,1.91008018,130.89,130.81,16.1656]
[1725844148029,34.77679378,130.9,130.82,72.48529818]
[1725844148224,1.91050531,130.88,130.82,27.48529818]
[1725844148455,18.38947544,130.89,130.82,27.48529818]
[1725844152162,20.29992697,130.89,130.82,27.48529818]
[1725844152348,18.38947544,130.89,130.82,27.48529818]
[1725844155848,20.30006984,130.89,130.82,27.48529818]
[1725844156355,15.8621,130.9,130.8,27.48529818]
[1725844156356,39.83511665,130.9,130.8,27.48529818]
[1725844156548,20.0,130.89,130.82,27.48529818]
[1725844157746,16.1292,130.87,130.76,12.03171805]
[1725844158066,16.1292,130.87,130.75,27.48529818]
[1725844158067,66.9113339,130.86,130.75,27.48529818]
[1725844158233,6.0746,130.84,130.75,27.48529818]
[1725844158438,16.1292,130.82,130.75,27.48529818]
[1725844158659,1.91166774,130.81,130.75,27.48529818]
[1725844159046,16.1292,130.82,130.75,27.48529818]
[1725844160064,16.1292,130.82,130.77,27.48529818]
[1725844160435,16.1292,130.82,130.78,45.0]
[1725844160639,16.1292,130.82,130.77,27.48529818]
[1725844161260,16.1292,130.82,130.78,45.0]
[1725844162039,23.55135949,130.84,130.79,27.48529818]
[1725844162246,23.55135949,130.84,130.79,29.01406507]
[1725844162441,23.55135949,130.84,130.79,27.48529818]
[1725844162642,1.91095409,130.83,130.72,15.3762]
[1725844162846,1.91139007,130.82,130.76,27.48529818]
[1725844163164,1.91139007,130.82,130.74,27.48529818]
[1725844163539,18.55711522,130.82,130.74,27.48529818]
[1725844163739,16.64572515,130.82,130.74,27.48529818]
[1725844164365,16.64572515,130.82,130.76,27.48529818]
[1725844168878,16.64572515,130.82,130.78,27.48529818]
[1725844169753,16.64572515,130.82,130.76,27.48529818]
[1725844172071,6.0746,130.84,130.76,27.48529818]
[1725844172277,7.98602001,130.84,130.76,27.48529818]
[1725844172574,6.0746,130.84,130.76,27.48529818]
[1725844172879,1.91135183,130.83,130.76,27.48529818]
[1725844173051,1.91151751,130.82,130.76,27.48529818]
[1725844173383,45.0,130.83,130.76,27.48529818]
[1725844173552,15.3716,130.81,130.73,27.48529818]
[1725844176257,6.4772,130.8,130.73,27.48529818]
[1725844180683,6.4772,130.8,130.75,27.48529818]
[1725844181874,6.4772,130.8,130.76,45.0]
[1725844182269,6.4772,130.8,130.75,27.48529818]
[1725844182870,6.4772,130.8,130.76,45.0]
[1725844185096,30.61169573,130.81,130.77,27.48529818]
[1725844185323,30.61169573,130.81,130.69,0.8542658]
[1725844185489,30.61169573,130.81,130.71,27.48529818]
[1725844185490,15.3716,130.81,130.71,27.48529818]
[1725844185999,17.28359504,130.81,130.71,27.48529818]
[1725844186981,15.3716,130.81,130.72,45.0]
[1725844187179,17.28358791,130.81,130.73,27.48529818]
[1725844187989,15.3716,130.81,130.73,27.48529818]
[1725844188184,15.3716,130.81,130.71,27.48529818]
[1725844188185,45.0,130.8,130.71,27.48529818]
[1725844189305,15.3716,130.81,130.71,27.48529818]
[1725844189598,15.3716,130.81,130.72,45.0]
[1725844190975,15.3716,130.81,130.73,27.48529818]
[1725844191895,1.91185257,130.8,130.73,27.48529818]
[1725844192092,15.3716,130.81,130.73,27.48529818]
[1725844193302,8.00191425,130.8,130.69,0.8542658]
[1725844193477,21.91233679,130.79,130.69,28.33956398]
[1725844193675,16.2427,130.78,130.69,28.33956398]
[1725844193903,1.91257859,130.77,130.69,28.33956398]
[1725844194104,6.1166,130.75,130.69,28.33956398]
[1725844194270,1.91256365,130.74,130.69,0.8542658]
[1725844194475,1.9125598,130.73,130.69,0.8542658]
[1725844194677,8.02927357,130.75,130.69,0.8542658]
[1725844194895,16.2427,130.74,130.69,0.8542658]
[1725844195098,1.91283211,130.73,130.69,0.8542658]
[1725844195880,16.2427,130.74,130.69,0.8542658]
[1725844197102,16.2427,130.74,130.69,28.33956398]
[1725844198127,18.15512494,130.74,130.69,28.33956398]
[1725844198327,16.2427,130.74,130.69,28.33956398]
[1725844200341,16.2427,130.74,130.69,0.8542658]
[1725844200521,1.91237749,130.73,130.69,0.8542658]
[1725844201697,16.2427,130.74,130.69,0.8542658]
[1725844202429,16.2427,130.74,130.69,28.33956398]
[1725844203110,16.2427,130.74,130.69,0.8542658]
[1725844203312,1.91272679,130.73,130.69,0.8542658]
[1725844203501,21.91272679,130.73,130.69,0.8542658]
[1725844203699,66.91272679,130.73,130.69,0.8542658]
[1725844203896,20.0,130.73,130.69,0.8542658]
[1725844204303,21.91302776,130.73,130.69,0.8542658]
[1725844204528,45.0,130.72,130.69,0.8542658]
[1725844204922,24.50772349,130.72,130.59,7.53227724]
[1725844205231,24.50772349,130.72,130.59,27.48529818]
[1725844205232,22.5946,130.7,130.59,27.48529818]
[1725844205534,46.91388874,130.69,130.59,27.48529818]
[1725844205740,66.91388874,130.69,130.59,27.48529818]
[1725844206030,66.91388874,130.69,130.6,1.53460325]
[1725844206207,18.50736061,130.68,130.6,1.53460325]
[1725844206403,16.5933,130.68,130.6,1.53460325]
[1725844206813,16.5933,130.68,130.61,27.48529818]
[1725844207027,1.91367645,130.67,130.61,27.48529818]
[1725844207309,16.5933,130.68,130.61,27.48529818]
[1725844207708,1.91390959,130.67,130.61,27.48529818]
[1725844207905,16.5933,130.68,130.61,27.48529818]
[1725844208807,16.5933,130.68,130.63,27.48529818]
[1725844209636,16.5933,130.68,130.61,27.48529818]
[1725844211843,16.5933,130.68,130.57,10.28394027]
[1725844211844,16.5933,130.68,130.63,27.48529818]
[1725844213749,16.5933,130.68,130.61,27.48529818]
[1725844215248,16.5933,130.68,130.63,27.48529818]
[1725844217322,6.3626,130.7,130.67,27.48529818]
[1725844217639,15.1959,130.71,130.67,27.48529818]
[1725844218140,15.1959,130.71,130.65,27.48529818]
[1725844218461,6.109,130.69,130.58,6.5936]
[1725844218618,8.02281637,130.69,130.6,27.48529818]
[1725844218823,6.109,130.69,130.6,27.48529818]
[1725844219040,6.109,130.69,130.62,27.48529818]
[1725844219540,6.109,130.69,130.64,27.48529818]
[1725844224629,15.1959,130.71,130.66,27.48529818]
[1725844225920,15.1959,130.71,130.67,1.53035326]
[1725844226146,15.1959,130.71,130.66,27.48529818]
[1725844226671,15.1959,130.71,130.62,44.00579818]
[1725844226672,6.5103,130.73,130.68,27.48529818]
[1725844226960,6.0194,130.76,130.72,27.48529818]
[1725844228051,6.0194,130.76,130.69,27.48529818]
[1725844228222,7.93204432,130.76,130.69,27.48529818]
[1725844228426,7.93204432,130.76,130.67,72.48529818]
[1725844228849,6.0194,130.76,130.67,72.48529818]
[1725844229226,6.0194,130.76,130.69,27.48529818]
[1725844230346,6.0194,130.76,130.69,34.4861268]
[1725844230648,6.0194,130.76,130.71,34.4861268]
[1725844230957,30.26247704,130.77,130.73,34.4861268]
[1725844232227,6.549,130.79,130.73,34.4861268]
[1725844232431,15.8914,130.8,130.75,34.4861268]
[1725844234351,6.1851,130.82,130.75,34.4861268]
[1725844234562,6.1851,130.82,130.77,34.4861268]
[1725844235034,6.1851,130.82,130.79,34.4861268]
[1725844235656,15.6052,130.84,130.79,34.4861268]
[1725844236666,17.51632095,130.84,130.79,34.4861268]
[1725844237038,15.6052,130.84,130.79,34.4861268]
[1725844237237,15.6052,130.84,130.77,34.4861268]
[1725844238434,15.6052,130.84,130.79,34.4861268]
[1725844241856,21.22727563,130.85,130.81,34.4861268]